Cogmind - Beta 14 @@@ ROGUE MODE // 2024.08.31 @ 22:27:26 Player: THN-L0C Result: Destroyed by Enhanced Grunt with Neutron Cannon Performance ------------- Evolutions (3) 1500 Regions Visited (11) 2200 Robots Destroyed (73) 365 Value Destroyed (2603) 2603 Prototype IDs (26) 520 Alien Tech Used (0) 0 Bonus (780) 780 TOTAL SCORE: 7968 Bonus ------- High Alert Combat Kills 28 Follower Combat Kills 152 Aligned with FarCom 300 Met Data Miner 300 Cogmind --------- Core Integrity 0/700 Matter 61/300 Energy 25/100 System Corruption 1% Temperature Cool (0) Movement Flying (37) Location -7/Data Miner Parts ------- > --- POWER (2) -------- (None) > --- PROPULSION (2) --- Nuclear Pulse Thruster Nuclear Pulse Thruster > --- UTILITY (6) ------ Improved Melee Analysis Suite Core Analyzer > --- WEAPON (3) ------- Power Maul > --- INVENTORY (5) ---- Armored Huge Wheel Large Matter Pod (150) Improved Field Recycling Unit (0) Gauss Cannon Peak State ------------ > --- POWER ------------ Deuterium Engine Micro Nuclear Core > --- PROPULSION ------- Armored Huge Wheel > --- UTILITY ---------- Advanced Heat Sink High-capacity Storage Unit Machine Analyzer Targeting Computer Weapon Cycler Layered Light Armor Plating > --- WEAPON ----------- Flak Gun Flak Gun Gauss Cannon > --- INVENTORY -------- Deuterium Engine Light Nuclear Core Armored Wheel Armored Wheel Armored Wheel Advanced Heat Sink Large Matter Pod Experimental Sensor Array 0b10 Alert Chip Core Analyzer Weapon Cycler Microactuators Force Booster Improved Light Armor Plating System Restoration Module Improved Field Recycling Unit Chronowheel Rocket Launcher Power Maul Longsword +1 [Rating: 53] Favorites ----------- Power Deuterium Engine Engine Deuterium Engine Power Core Light Nuclear Core Propulsion Carbon-fiber Leg Treads Armored Treads Leg Carbon-fiber Leg Wheel Armored Wheel Flight Unit Nuclear Pulse Thruster Utility High-capacity Storage Unit Device Weapon Cycler Storage High-capacity Storage Unit Processor Targeting Computer Protection Light Armor Plating Weapon Improved Assault Rifle Energy Gun Beamcaster Ballistic Gun Improved Assault Rifle Ballistic Cannon Gauss Cannon Launcher Rocket Launcher Impact Weapon Power Maul Slashing Weapon Longsword +1 Build | -11 -10 -10 -9 -9 -9 -8 -8 -7 -7 -7 -7 ------- Run | Yrd Mat Min Mat Min Exi Min Mat Fac Low Low Dat Slots Evolved 6 | . . . 2 . . . 2 2 . . . Power 1 | . . . . . . . . 1 . . . Propulsion . | . . . . . . . . . . . . Utility 4 | . . . 2 . . . 1 1 . . . Weapon 1 | . . . . . . . 1 . . . . Parts Attached 103 | 6 . 4 9 2 1 7 29 26 5 4 10 Power 13 | 1 . 1 1 . . . 2 6 2 . . Engine 6 | 1 . . 1 . . . 1 3 . . . Core 7 | . . 1 . . . . 1 3 2 . . Reactor . | . . . . . . . . . . . . Propulsion 18 | 2 . 2 2 . . 2 7 1 . . 2 Treads 2 | . . . . . . . 2 . . . . Leg 8 | 2 . 2 2 . . 2 . . . . . Wheel 6 | . . . . . . . 5 1 . . . Hover . | . . . . . . . . . . . . Flight 2 | . . . . . . . . . . . 2 Utility 36 | 2 . . 4 1 1 . 13 5 1 3 6 Device 18 | 1 . . 3 1 . . 8 1 . 1 3 Storage 3 | 1 . . 1 . 1 . . . . . . Processor 6 | . . . . . . . 2 2 . . 2 Hackware . | . . . . . . . . . . . . Protection 9 | . . . . . . . 3 2 1 2 1 Artifact . | . . . . . . . . . . . . Weapon 36 | 1 . 1 2 1 . 5 7 14 2 1 2 Energy Gun 1 | . . . . . . . 1 . . . . Energy Cannon . | . . . . . . . . . . . . Ballistic Gun 23 | 1 . 1 2 . . 4 6 8 1 . . Ballistic Cannon 4 | . . . . . . . . 3 1 . . Launcher 4 | . . . . 1 . 1 . 1 . 1 . Special Weapon . | . . . . . . . . . . . . Impact Weapon 2 | . . . . . . . . 1 . . 1 Slashing Weapon 2 | . . . . . . . . 1 . . 1 Piercing Weapon . | . . . . . . . . . . . . Special Melee Weapon . | . . . . . . . . . . . . Unidentified Prototypes 1 | . . . 1 . . . . . . . . Parts Lost 23 | . . . 1 . . 4 2 3 2 1 10 Power 3 | . . . . . . 1 . . 2 . . Propulsion . | . . . . . . . . . . . . Utility 11 | . . . 1 . . 2 . 1 . 1 6 Weapon 9 | . . . . . . 1 2 2 . . 4 Highest Loss Streak 10 | . . . 1 . . 2 2 1 1 1 10 To Critical Strikes . | . . . . . . . . . . . . Average Slot Usage (%) 90 | . 85 98 92 92 100 75 90 94 87 82 64 Engine 6 | . 14 3 2 11 11 4 4 9 7 7 5 Core 3 | . . 10 8 . . . . 5 3 . . Leg 11 | . 28 28 22 22 22 22 7 . . . . Wheel 5 | . . . . . . . 9 11 7 7 5 Device 19 | . 14 14 25 26 33 16 19 18 15 13 4 Storage 9 | . 14 14 11 11 11 11 9 7 7 7 5 Processor 6 | . . . . . . . 7 11 15 15 15 Protection 3 | . . . . . . . 5 5 7 7 8 Ballistic Gun 17 | . 14 26 22 11 11 16 20 15 15 15 8 Ballistic Cannon 1 | . . . . . . . . 5 2 6 . Launcher 2 | . . . . 11 11 5 . . . . 3 Peak Build Rating 53 | 6 6 10 27 28 30 30 39 53 52 48 46 Average Rating 33 | 4 6 8 19 26 29 24 34 46 49 46 35 On Entrance 25 | . 6 6 10 26 28 30 23 35 49 48 39 Naked Turns . | . . . . . . . . . . . . Heaviest Build 100 | 13 13 14 98 100 100 60 66 76 71 72 69 Greatest Support 49 | 20 20 20 30 30 30 30 49 28 28 28 28 Greatest Overweight (x) 4 | . . . 4 3 3 1 4 2 2 2 2 Average Overweight (x) 1 | . . . 1 3 2 1 1 2 2 2 1 Largest Inventory Capacity 25 | 8 8 8 25 25 25 20 20 20 20 20 20 Average Capacity 18 | 7 8 8 21 25 24 20 20 20 20 20 17 Most Carried 20 | 2 1 7 12 12 15 18 20 20 20 20 20 Average Carried 15 | . 1 5 9 12 13 16 19 19 19 19 17 Final Capacity 25 | 8 8 8 25 25 20 20 20 20 20 20 5 Final Carried 20 | 1 1 7 12 12 15 18 20 20 20 20 5 Class Distribution -------------------- 39% | Scavenger-Mutant 33% | Gunner 14% | Mutant 7% | Scavenger-Skirmisher Dominant Class ---------------- Mutant | -10/Materials Scavenger-Mutant | -10/Mines Scavenger-Mutant | -9/Materials Scavenger-Mutant | -9/Mines Scavenger-Mutant | -9/Exiles Scavenger-Mutant | -8/Mines Gunner | -8/Materials Gunner | -7/Factory Scavenger-Mutant | -7/Lower Caves Gunner | -7/Lower Caves Tank | -7/Data Miner Resources | -11 -10 -10 -9 -9 -9 -8 -8 -7 -7 -7 -7 ----------- Run | Yrd Mat Min Mat Min Exi Min Mat Fac Low Low Dat Matter Collected 2698 | 275 . 149 211 112 . 290 402 864 331 64 . Remotely . | . . . . . . . . . . . . Salvage Created 2402 | 138 . 228 92 75 . 305 402 837 256 3 66 Parts 125 | 7 . 8 4 7 . 14 25 45 9 5 1 Haulers Intercepted 1 | . . . . . . . . 1 . . . Recyclers Shooed 3 | . . . . . . 1 . 2 . . . Parts Field Recycled . | . . . . . . . . . . . . Retrieved Matter . | . . . . . . . . . . . . Parts Self-Destructed 7 | . . . . . . . . . 7 . . Prevented . | . . . . . . . . . . . . Kills | -11 -10 -10 -9 -9 -9 -8 -8 -7 -7 -7 -7 ------- Run | Yrd Mat Min Mat Min Exi Min Mat Fac Low Low Dat Combat Hostiles Destroyed 61 | . . 7 4 7 . 11 7 16 6 1 2 Melee 2 | . . . . . . . . 1 . . 1 Guns 33 | . . 7 4 . . 5 7 5 5 . . Cannons 8 | . . . . . . . . 7 1 . . AOE 18 | . . . . 7 . 6 . 3 . 1 1 Classes Destroyed 14 | 2 . 2 1 1 . 3 . 4 . 1 . Worker 2 | . . . . . . . . 2 . . . Builder 1 | . . . . . . 1 . . . . . Tunneler 5 | 2 . . . . . 1 1 1 . . . Hauler 1 | . . . . . . . . 1 . . . Recycler 2 | 1 . . . . . . . 1 . . . Watcher 1 | . . . . . . . . 1 . . . Swarmer 16 | . . 3 3 4 . 4 . 2 . . . Grunt 23 | . . 4 . 2 . 5 3 6 3 . . Brawler 2 | . . . . . . 1 . . 1 . . Duelist 2 | . . . . 1 . . . . 1 . . Sentry 11 | . . . 1 . . . 4 5 1 . . Hunter 2 | . . . . . . 1 . 1 . . . Programmer 2 | . . . . . . . . 2 . . . Enhanced Grunt 2 | . . . . . . . . . . . 2 Master Thief 1 | . . . . . . . . . . 1 . Best Kill Streak 7 | 2 . 3 3 7 . 6 3 5 4 1 1 Combat Bots Only 7 | . . 3 3 7 . 5 3 4 4 1 1 Max Kills in Single Turn 3 | 1 . 1 1 3 . 3 1 2 1 1 1 Gunslinging . | . . . . . . . . . . . . Exploded 3 | . . . . 3 . 3 . 2 . 1 1 Melee 1 | . . . . . . . . 1 . . 1 Uniques/NPCs Destroyed . | . . . . . . . . . . . . Combat | -11 -10 -10 -9 -9 -9 -8 -8 -7 -7 -7 -7 -------- Run | Yrd Mat Min Mat Min Exi Min Mat Fac Low Low Dat Hostile Shots Fired 391 | . 1 29 49 13 . 44 23 117 64 6 45 Missed 124 | . 1 7 12 5 . 13 1 43 27 1 14 Damage Taken 4554 | . . 210 354 95 . 457 350 1099 480 43 1466 Core 984 | . . 69 61 26 . 45 62 179 27 . 515 Absorbed by Shields 22 | . . . . . . 22 . . . . . Redirected to Shielding 90 | . . . . . . . . . . . 90 Core Remaining (%) 81 | 100 . 72 . . . 67 88 . . . . Volleys Fired 180 | 21 . 20 8 5 . 33 25 42 16 4 6 Largest 3 | 1 . 2 2 1 . 2 3 3 3 3 3 Hottest 126 | 20 . 40 46 33 . 61 126 104 104 100 85 Shots Fired 377 | 21 . 29 16 5 . 55 73 116 38 13 11 Gun 310 | 21 . 29 16 . . 47 73 79 32 9 4 Cannon 42 | . . . . . . . . 34 6 2 . Launcher 25 | . . . . 5 . 8 . 3 . 2 7 Special . | . . . . . . . . . . . . Kinetic 339 | 21 . 29 16 . . 47 60 113 38 11 4 Thermal 13 | . . . . . . . 13 . . . . Explosive 25 | . . . . 5 . 8 . 3 . 2 7 Electromagnetic . | . . . . . . . . . . . . Robot Hit Streak 15 | 10 . 3 11 1 . 15 15 13 14 2 6 Robot Miss Streak 12 | 2 . 3 1 1 . 3 2 8 9 12 3 Penetration Max 1 | . . . . . . . . 1 . . . Secondary Targets 3 | . . 1 1 . . . . . 1 . . Max Gunslinging Chain 1 | . . 1 1 . . . . . 1 . . Shots Hit Robots 258 | 17 . 14 13 1 . 39 43 80 33 6 12 Core Hits 192 | 4 1 10 5 10 . 22 14 60 43 3 20 Critical Kills 1 | . . 1 . . . . . . . . . Critical Parts Destroyed 3 | 1 . . . . . . 1 . . . 1 Critical Strikes 10 | 1 . 1 . . . . 1 4 2 . 1 Destroy 3 | 1 . 1 . . . . 1 . . . . Blast 6 | . . . . . . . . 4 2 . . Smash 1 | . . . . . . . . . . . 1 Melee Attacks 12 | . . . . . . . . 7 1 . 4 Impact 6 | . . . . . . . . 1 1 . 4 Slashing 6 | . . . . . . . . 6 . . . Piercing . | . . . . . . . . . . . . Sneak Attacks . | . . . . . . . . . . . . Combat Hostiles . | . . . . . . . . . . . . Follow-up Attacks . | . . . . . . . . . . . . Damage Inflicted 7221 | 213 11 185 185 469 . 1412 718 2168 687 214 959 Guns 3632 | 213 . 153 185 . . 584 718 1049 598 50 82 Cannons 754 | . . . . . . . . 636 89 29 . Explosions 2514 | . . . . 466 . 801 . 388 . 135 724 Melee 205 | . . . . . . . . 52 . . 153 Ramming 116 | . 11 32 . 3 . 27 . 43 . . . Kinetic 4193 | 213 . 153 185 . . 584 525 1685 687 79 82 Thermal 228 | . . . . . . . 193 35 . . . Explosive 2469 | . . . . 466 . 801 . 343 . 135 724 Electromagnetic 10 | . . . . . . . . 10 . . . Impact 153 | . . . . . . . . . . . 153 Slashing 52 | . . . . . . . . 52 . . . Piercing . | . . . . . . . . . . . . Highest Corruption 1 | . . . . . . . 1 1 1 1 1 Average Corruption 1 | . . . . . . . 1 1 1 1 1 Corruption Purged . | . . . . . . . . . . . . Corruption Blocked . | . . . . . . . . . . . . Effects 31 | . . . . . . . 6 13 5 5 2 Message Errors 7 | . . . . . . . 3 2 1 1 . Matter Fused 13 | . . . . . . . 2 4 4 3 . Heat Flow Errors 3 | . . . . . . . . 2 . . 1 Energy Discharges 1 | . . . . . . . . 1 . . . Data Loss (minor) 4 | . . . . . . . 1 3 . . . Misfires 3 | . . . . . . . . 1 . 1 1 Overload Shots . | . . . . . . . . . . . . Overflow Damage 217 | . . . . 40 . 70 . 29 17 3 58 Projectiles 46 | . . . . . . . . 29 17 . . Explosions 128 | . . . . 40 . 70 . . . 3 15 Melee 43 | . . . . . . . . . . . 43 Knockbacks 9 | . . . . . . 1 . 5 1 2 . Impact 1 | . . . . . . 1 . . . . . Kinetic 6 | . . . . . . . . 4 1 1 . Secondary 2 | . . . . . . . . 1 . 1 . Self-Inflicted Damage 155 | . . . . 24 . 19 . 76 . 36 . Shots 6 | . . . . 1 . 1 . 3 . 1 . Rammed 2 | . . . . . . . . 2 . . . Targets Rammed 16 | . 1 9 . 1 . 3 . 2 . . . Kicked 14 | . 1 9 . 1 . 3 . . . . . Crushed . | . . . . . . . . . . . . Highest Temperature 428 | . . 33 . . . . 428 252 91 30 164 Average Temperature 81 | . . 13 . . . . 144 57 39 15 54 Received Heat Transfer 891 | . . 105 63 12 . 156 189 165 201 . . Effects 1 | . . . . . . . 1 . . . . Energy Bleed 1 | . . . . . . . 1 . . . . Siege Activations . | . . . . . . . . . . . . Robots Corrupted . | . . . . . . . . . . . . Combat Hostiles . | . . . . . . . . . . . . Parts Fried . | . . . . . . . . . . . . Impact Corruptions 1 | . . . . . . . . . . . 1 Robots Melted . | . . . . . . . . . . . . Combat Hostiles . | . . . . . . . . . . . . Parts Melted . | . . . . . . . . . . . . Heat Transferred 383 | . . . . . . . 333 50 . . . Parts Sabotaged . | . . . . . . . . . . . . Parts Stolen 6 | . . . . . . . . . 2 4 . Parts Stripped . | . . . . . . . . . . . . Power Chain Reactions 1 | . . . . . . . . 1 . . . Alert | -11 -10 -10 -9 -9 -9 -8 -8 -7 -7 -7 -7 ------- Run | Yrd Mat Min Mat Min Exi Min Mat Fac Low Low Dat Peak Influence 473 | 15 13 159 159 196 . 220 177 473 . . . Initial 68 | . 9 4 3 . . . 31 68 . . . Average 147 | 6 12 87 56 190 . 70 68 299 . . . Maximum Alert Level 2 | . . . . . . 1 . 2 . . . Low Security (%) 74 | 100 100 100 100 100 . 93 100 24 . . . Level 1 19 | . . . . . . 6 . 58 . . . Level 2 5 | . . . . . . . . 16 . . . Level 3 . | . . . . . . . . . . . . Level 4 . | . . . . . . . . . . . . Level 5 . | . . . . . . . . . . . . High Security . | . . . . . . . . . . . . Max Security . | . . . . . . . . . . . . Squads Dispatched 8 | . . . 1 . . 1 . 6 . . . Investigation . | . . . . . . . . . . . . Extermination 2 | . . . . . . . . 2 . . . Reinforcement 5 | . . . 1 . . 1 . 3 . . . Assault . | . . . . . . . . . . . . Garrison 1 | . . . . . . . . 1 . . . Intercept . | . . . . . . . . . . . . Searches Triggered . | . . . . . . . . . . . . Construction Impeded 1 | . . . . . . 1 . . . . . Haulers Reinforced . | . . . . . . . . . . . . Active Scanning Responses . | . . . . . . . . . . . . Cargo Convoy Interrupts 1 | . . . . . . . . 1 . . . Stealth | -11 -10 -10 -9 -9 -9 -8 -8 -7 -7 -7 -7 --------- Run | Yrd Mat Min Mat Min Exi Min Mat Fac Low Low Dat Distress Signals 6 | . . . 1 . . . 3 2 . . . Communications Jammed . | . . . . . . . . . . . . Distress Signals . | . . . . . . . . . . . . Times Spotted 119 | . 1 12 9 7 . 10 24 34 14 4 4 Peak Tracking Total 5 | . 2 3 4 5 . 4 5 4 4 4 4 Tactical Retreats 10 | . . 1 . . . . 4 4 1 . . Traps | -11 -10 -10 -9 -9 -9 -8 -8 -7 -7 -7 -7 ------- Run | Yrd Mat Min Mat Min Exi Min Mat Fac Low Low Dat Traps Triggered 4 | . . . . . . . 3 1 . . . Indirectly . | . . . . . . . . . . . . Trap Hack Attempts . | . . . . . . . . . . . . Triggered . | . . . . . . . . . . . . Disarmed . | . . . . . . . . . . . . Reprogrammed . | . . . . . . . . . . . . Reused . | . . . . . . . . . . . . Traps Extracted . | . . . . . . . . . . . . Installed . | . . . . . . . . . . . . Triggered 1 | . . . . . . . . 1 . . . Machines | -11 -10 -10 -9 -9 -9 -8 -8 -7 -7 -7 -7 ---------- Run | Yrd Mat Min Mat Min Exi Min Mat Fac Low Low Dat Machines Disabled 11 | . . . . 1 . . 1 8 . . 1 Max in Single Turn 5 | . . . . 1 . . 1 5 . . 1 Garrison Access 1 | . . . . . . . . 1 . . . Machines Repaired . | . . . . . . . . . . . . Machines Dismantled . | . . . . . . . . . . . . Machines Sabotaged . | . . . . . . . . . . . . Overloaded Fab Kills . | . . . . . . . . . . . . Hacking | -11 -10 -10 -9 -9 -9 -8 -8 -7 -7 -7 -7 --------- Run | Yrd Mat Min Mat Min Exi Min Mat Fac Low Low Dat Machines Accessed 16 | . 1 . 1 . 1 1 5 7 . . . Terminals 14 | . 1 . 1 . . 1 5 6 . . . Fabricators . | . . . . . . . . . . . . Repair Stations . | . . . . . . . . . . . . Recycling Units . | . . . . . . . . . . . . Scanalyzers . | . . . . . . . . . . . . Garrison Access 1 | . . . . . . . . 1 . . . Total Hacks 42 | . 3 . 3 . 1 1 16 18 . . . Successful 25 | . 1 . 1 . 1 1 10 11 . . . Failed 17 | . 2 . 2 . . . 6 7 . . . Catastrophic 4 | . . . . . . . 1 3 . . . Database Lockouts . | . . . . . . . . . . . . Manual 30 | . 3 . 3 . 1 . 13 10 . . . Terminals 38 | . 3 . 3 . . 1 16 15 . . . Fabricators . | . . . . . . . . . . . . Repair Stations . | . . . . . . . . . . . . Recycling Units . | . . . . . . . . . . . . Scanalyzers . | . . . . . . . . . . . . Garrison Access 3 | . . . . . . . . 3 . . . Terminal Hacks 9 | . . . . . 1 1 2 5 . . . Record 1 | . . . . . . . . 1 . . . Prototype ID Bank 1 | . . . . . . . . 1 . . . Branch Access Points 2 | . . . . . . . 1 1 . . . Locate Traps 2 | . . . . . . . 1 1 . . . Zone Layout 2 | . . . . . . 1 . 1 . . . Derelict Proto ID Bank 1 | . . . . . 1 . . . . . . Fabricator Hacks . | . . . . . . . . . . . . Repair Station Hacks . | . . . . . . . . . . . . Recycling Unit Hacks . | . . . . . . . . . . . . Scanalyzer . | . . . . . . . . . . . . Garrison Access Hacks 1 | . . . . . . . . 1 . . . Seal Access 1 | . . . . . . . . 1 . . . Unauthorized Hacks 15 | . 1 . 1 . . . 8 5 . . . Terminals 15 | . 1 . 1 . . . 8 5 . . . Botnet 4 | . . . . . . . 3 1 . . . Skim 11 | . 1 . 1 . . . 5 4 . . . Fabricators . | . . . . . . . . . . . . Repair Stations . | . . . . . . . . . . . . Recycling Units . | . . . . . . . . . . . . Scanalyzers . | . . . . . . . . . . . . Garrison Access . | . . . . . . . . . . . . Data Cores Recovered . | . . . . . . . . . . . . Used . | . . . . . . . . . . . . Hacking Detections 12 | . 1 . 1 . . . 5 5 . . . Full Trace Events 1 | . 1 . . . . . . . . . . Feedback Events . | . . . . . . . . . . . . Feedback Blocked . | . . . . . . . . . . . . Robot Schematics Acquired . | . . . . . . . . . . . . Robots Built . | . . . . . . . . . . . . Authchips . | . . . . . . . . . . . . Time . | . . . . . . . . . . . . Total Robot Build Rating . | . . . . . . . . . . . . Part Schematics Acquired . | . . . . . . . . . . . . Parts Built . | . . . . . . . . . . . . Authchips . | . . . . . . . . . . . . Time . | . . . . . . . . . . . . Total Part Build Rating . | . . . . . . . . . . . . Parts Repaired . | . . . . . . . . . . . . Time . | . . . . . . . . . . . . Parts Recycled . | . . . . . . . . . . . . Recycled Matter . | . . . . . . . . . . . . Retrieved Matter . | . . . . . . . . . . . . Retrieved Components . | . . . . . . . . . . . . Parts Scanalyzed . | . . . . . . . . . . . . Part Schematics Acquired . | . . . . . . . . . . . . Parts Damaged . | . . . . . . . . . . . . Bothacking | -11 -10 -10 -9 -9 -9 -8 -8 -7 -7 -7 -7 ------------ Run | Yrd Mat Min Mat Min Exi Min Mat Fac Low Low Dat Used RIF Installer . | . . . . . . . . . . . . Robots Hacked . | . . . . . . . . . . . . Non-combat . | . . . . . . . . . . . . Combat . | . . . . . . . . . . . . Robot Hacks Applied . | . . . . . . . . . . . . Relay Couplers Released . | . . . . . . . . . . . . Fabnet Peak Effective % . | . . . . . . . . . . . . Robots Rewired . | . . . . . . . . . . . . Allies Hacked . | . . . . . . . . . . . . Hacks Repelled . | . . . . . . . . . . . . Allies | -11 -10 -10 -9 -9 -9 -8 -8 -7 -7 -7 -7 -------- Run | Yrd Mat Min Mat Min Exi Min Mat Fac Low Low Dat Total Allies 5 | . . 5 . . . . . . . . . Largest Group 4 | . . 4 1 . . . . . . . . Highest-Rated Group 75 | . . 75 31 . . . . . . . . Highest-Rated Ally 31 | . . 31 31 . . . . . . . . Total Orders . | . . . . . . . . . . . . Ally Attacks 46 | . . 33 13 . . . . . . . . Total Damage 649 | . . 437 212 . . . . . . . . Kills 6 | . . 4 2 . . . . . . . . Allies Corrupted . | . . . . . . . . . . . . Allies Melted . | . . . . . . . . . . . . Intel | -11 -10 -10 -9 -9 -9 -8 -8 -7 -7 -7 -7 ------- Run | Yrd Mat Min Mat Min Exi Min Mat Fac Low Low Dat Robot Analysis Total . | . . . . . . . . . . . . Derelict Logs Recovered 3 | . . 2 . . . . . . . 1 . Drone Launches . | . . . . . . . . . . . . Drone Recoveries . | . . . . . . . . . . . . Exploration | -11 -10 -10 -9 -9 -9 -8 -8 -7 -7 -7 -7 ------------- Run | Yrd Mat Min Mat Min Exi Min Mat Fac Low Low Dat Turns Passed 8039 | 114 149 925 447 208 792 793 1422 1967 709 403 110 Spaces Moved 4788 | 55 124 714 164 59 261 351 835 1375 503 290 57 Core 5 | 5 . . . . . . . . . . . Treads 23 | . . . . . . . 23 . . . . Legs 1985 | 50 124 714 164 59 261 351 262 . . . . Wheels 2772 | . . . . . . . 550 1375 503 290 54 Hover . | . . . . . . . . . . . . Flight 3 | . . . . . . . . . . . 3 Fastest Speed 37 | 50 120 120 120 330 190 190 105 120 130 130 37 Average Speed 149 | 113 120 120 248 330 302 190 144 123 130 130 124 Slowest Speed 400 | 120 120 120 400 330 330 190 250 130 130 130 130 Overloaded Moves . | . . . . . . . . . . . . Propulsion Burnouts . | . . . . . . . . . . . . Robots Hopped . | . . . . . . . . . . . . Cave-ins Triggered . | . . . . . . . . . . . . Exploration Rate (%) 45 | 5 24 98 23 14 63 59 48 37 63 46 71 Regions Visited 11 Branch Regions 7 Pre-discovered Areas 1 | . . 1 . . . . . . . . . Known Exits Taken 1 | . . . . . . . . 1 . . . Unknown Exits Taken 10 | 1 1 1 1 1 1 1 1 . 1 1 . Scrap Searched 9 | . . 3 . 1 . . . . 3 2 . Spaces Dug 6 | . . . . . . . . 6 . . . Terrain Destroyed 180 | . . . . 45 . 57 . 27 1 20 30 Melee 6 | . . . . . . . . 6 . . . Projectile 7 | . . . . . . . . 5 1 1 . AOE 167 | . . . . 45 . 57 . 16 . 19 30 Terrain Rammed . | . . . . . . . . . . . . Walls Destroyed . | . . . . . . . . . . . . Machines Disabled . | . . . . . . . . . . . . Actions | -11 -10 -10 -9 -9 -9 -8 -8 -7 -7 -7 -7 --------- Run | Yrd Mat Min Mat Min Exi Min Mat Fac Low Low Dat Total 5381 | 83 124 751 188 66 264 417 1008 1565 529 307 79 Wait 189 | . . 2 . . . 23 87 75 2 . . Move 4777 | 54 123 713 163 58 260 350 834 1374 502 289 57 Hop . | . . . . . . . . . . . . Pick Up 50 | 2 . 3 4 . 3 1 18 11 2 6 . Fast Attach 24 | 5 . 1 2 1 . . 8 5 1 1 . Attach 16 | 1 . . 1 . . 1 3 2 1 . 7 Detach 2 | . . . 1 . . . . . . . 1 Swap 63 | . . 3 6 1 1 6 18 19 3 3 3 Drop 44 | . . . 3 . . . 15 20 1 4 1 Fire 180 | 21 . 20 8 5 . 33 25 42 16 4 6 Melee 12 | . . . . . . . . 7 1 . 4 Ram 2 | . . . . . . . . 2 . . . Kick 14 | . 1 9 . 1 . 3 . . . . . Crush . | . . . . . . . . . . . . Escape Stasis 8 | . . . . . . . . 8 . . . Rewire . | . . . . . . . . . . . . Trap . | . . . . . . . . . . . . Miscellaneous . | . . . . . . . . . . . . Route ------- -11/Scrapyard -10/Materials -10/Mines (discovered 3 exits: *Mat x2 / Sub) -9/Materials (discovered 2 exits: *Mat / [*Min]) -9/Mines (discovered 2 exits: *Mat / *Exi) -9/Exiles (discovered 2 exits: *Min x2) -8/Mines -8/Materials (discovered 3 exits: *Fac x2 / Sto) -7/Factory (discovered 2 exits: *Low x2) -7/Lower Caves -7/Lower Caves (discovered 2 exits: [*Fac] / [*Dat]) -7/Data Miner (discovered 1 exit: [*Pro]) History --------- Turn | Location | Event 7 | -11/Scrapyard | Discovered new exit (range 15) 115 | -11/Scrapyard | Entered Materials 247 | -10/Materials | Discovered new exit (range 14) 264 | -10/Materials | Entered Mines 317 | -10/Mines | Build established: Mutant 378 | -10/Mines | Assisted by bots powering up and referring to "LRC-V3" 439 | -10/Mines | Discovered new exit (range 13) 653 | -10/Mines | Found a damaged Exp. Sensor Array with a note attached 655 | -10/Mines | Found Prototype Device 696 | -10/Mines | Discovered new exit (range 6) 746 | -10/Mines | Learned location of Storage (-8) 820 | -10/Mines | Build established: Scavenger-Mutant 1016 | -10/Mines | Learned Materials terminal intel 1027 | -10/Mines | Identified exit to Subcaves 1189 | -10/Mines | Entered Materials 1189 | -9/Materials | Accompanied by 1 ally 1189 | -9/Materials | Evolved 2 slots: Utility x2 1190 | -9/Materials | Loaded intel: 12 terminal locations 1194 | -9/Materials | Led the pair of lost Derelicts to an unsafe place 1394 | -9/Materials | Discovered new exit (range 5) 1587 | -9/Materials | Discovered new exit (range 15) 1636 | -9/Materials | Entered Mines 1638 | -9/Mines | Discovered new exit (range 8) 1667 | -9/Mines | Destroyed 7 combat bots 1719 | -9/Mines | Met a Derelict bent on vengeance 1828 | -9/Mines | Deemed a non-threat by the Exiles lab entrance 1831 | -9/Mines | Discovered new exit (range 5) 1844 | -9/Mines | Entered Exiles 1887 | -9/Exiles | Discovered new exit (range 15) 1927 | -9/Exiles | Met 8R-AWN 1973 | -9/Exiles | Met EX-HEX 2072 | -9/Exiles | Met EX-BIN 2112 | -9/Exiles | Aligned with FarCom system 2115 | -9/Exiles | Given EX-Vault access code 2201 | -9/Exiles | Opened EX-Vault 2224 | -9/Exiles | Found Longsword +1 2238 | -9/Exiles | Found 0b10 Alert Chip 2242 | -9/Exiles | Found Chronowheel 2306 | -9/Exiles | Warned to stay clear of 0b10 Research branches 2422 | -9/Exiles | Met EX-DEC 2618 | -9/Exiles | Discovered new exit (range 10) 2636 | -9/Exiles | Stole three prototypes: 0b10 Alert Chip, Chronowheel, Longsword +1 2636 | -9/Exiles | Entered Mines 3351 | -8/Mines | Discovered new exit (range 12) 3429 | -8/Mines | Entered Materials 3429 | -8/Materials | Evolved 2 slots: Utility x1, Weapon x1 3695 | -8/Materials | Discovered new exit (range 12) 3936 | -8/Materials | Build established: Scavenger-Skirmisher 4483 | -8/Materials | Build established: Gunner 4624 | -8/Materials | Discovered new exit (range 15) 4795 | -8/Materials | Identified exit to Storage 4851 | -8/Materials | Entered Factory 4851 | -7/Factory | Evolved 2 slots: Power x1, Utility x1 4853 | -7/Factory | FarCom data flow suspended 5260 | -7/Factory | Garrison activated, responded to threat 6196 | -7/Factory | Cargo convoy interrupted 6706 | -7/Factory | Identified exit to Lower Caves 6818 | -7/Factory | Entered Lower Caves 6818 | -7/Lower Caves | Spotted PA-5XK(f) 6818 | -7/Lower Caves | Spotted PA-C62(f) 6820 | -7/Lower Caves | Encountered a Master Thief 6820 | -7/Lower Caves | Encountered a Master Thief 6820 | -7/Lower Caves | Spotted I1-DDI(f) 6821 | -7/Lower Caves | Encountered a Master Thief 6821 | -7/Lower Caves | Longsword +1 stolen by Master Thief 6823 | -7/Lower Caves | 0b10 Alert Chip stolen by Master Thief 7282 | -7/Lower Caves | Attracted the attention of an 0b10 checkpoint 7458 | -7/Lower Caves | Spotted B-75 Beast 7514 | -7/Lower Caves | Discovered new exit (range 11) 7527 | -7/Lower Caves | Entered another Lower Caves area 7698 | -7/Lower Caves | Discovered new exit (range 6) 7791 | -7/Lower Caves | Encountered a Warlord checkpoint 7881 | -7/Lower Caves | Spotted 34-I9T(f) 7881 | -7/Lower Caves | Spotted CU-XQ2(f) 7882 | -7/Lower Caves | Encountered a Master Thief 7882 | -7/Lower Caves | Encountered a Master Thief 7882 | -7/Lower Caves | Spotted 26-ZJ9(f) 7883 | -7/Lower Caves | Encountered a Master Thief 7883 | -7/Lower Caves | Spotted ST-C8I(f) 7884 | -7/Lower Caves | Encountered a Master Thief 7884 | -7/Lower Caves | Chronowheel stolen by Master Thief 7886 | -7/Lower Caves | Prototype Device stolen by Master Thief 7887 | -7/Lower Caves | Adv. Heat Sink stolen by Master Thief 7888 | -7/Lower Caves | Adv. Heat Sink stolen by Master Thief 7893 | -7/Lower Caves | Destroyed ST-C8I(f) 7907 | -7/Lower Caves | Discovered new exit (range 9) 7930 | -7/Lower Caves | Entered Data Miner 7930 | -7/Data Miner | Discovered new exit (range 6) 7955 | -7/Data Miner | Met Data Miner 7984 | -7/Data Miner | Data Conduit disabled 8013 | -7/Data Miner | Core integrity fell below 50% 8037 | -7/Data Miner | Core integrity fell below 20% 8040 | -7/Data Miner | Destroyed by Enhanced Grunt with Neutron Cannon Last Messages --------------- 07984_ ORACLE Interface goes dark. 07991_ Mak. Shrapnel Gun destroyed. 07994_ Flak Gun destroyed. 07996_ Imp. Propulsion Shielding destroyed. 07996_ Enhanced Grunt destroyed. 07997_ The unstable cave ceiling collapses. 07997_ Rocket Launcher destroyed. 07998_ Hrd. Medium Armor Plating destroyed. 08013_ Discarded Machine Analyzer. 08018_ Discarded Targeting Computer. 08025_ Ripper destroyed. 08025_ Dropped Deuterium Engine. 08027_ Microactuators destroyed. 08031_ Enhanced Grunt suffers critical hit (Smash). 08031_ Destroyed Adv. Heat Sink. 08031_ Enhanced Grunt system corrupted by crushing effect. 08034_ Force Booster destroyed. 08034_ Enhanced Grunt destroyed. 08036_ Lyr. Light Armor Plating destroyed. 08040_ Force Booster destroyed. Map ----- +----------------------------------------------------+ | | | | | ????????????????????????????????????????? | | ????????????????????????????????????????? | | ????????????????????????????????????????? | | ???????????????????????# #??????????????? | | ??????????????????????# ?????????#### | | ????????############## ??????### # | | ???????""""""""""""" ?????## # | | ?????"""""""" """ #% ##### < ## | | ?????"""""""" # | | ?????"" | | ?????"" | | ?????"" | | ?????"" | | ?????"""" """"""""""""""""# | | ??????""""" """"############### | | ??????""""" """""###?????????????? | | ???????"""""" "#####???????????????? | | ???????#####"## "#???????????????????? | | ???????????#"?## "#???????????????????? | | ???????????#"?## "#???????????????????? | | ??????????????# g"#???????????????????? | | ?????????????## "#???????????????????? | | ?????????????# g! "#???????????????????? | | ?????????????##;@% "#???????????????????? | | ?????????????# ;= "##??????????????????? | | ?????????????##;[= ""#??????????????????? | | ??????????????#=!! ""#??????????????????? | | ?????????????#"X!= "#??????????????????? | | ????????????""" * "#??????????????????? | | ???????????"""" X""""????????????????? | | ??????????##"#" "##"????????????????? | | ???????????#"## X"""?????????????????? | | ??????????????## "##?????????????????? | | ???????????????#######??????????????????? | | ????????????????????????????????????????? | | ????????????????????????????????????????? | | ????????????????????????????????????????? | | ????????????????????????????????????????? | | ????????????????????????????????????????? | | ????????????????????????????????????????? | | ????????????????????????????????????????? | | ????????????????????????????????????????? | | ????????????????????????????????????????? | | ????????????????????????????????????????? | | ????????????????????????????????????????? | | ????????????????????????????????????????? | | ????????????????????????????????????????? | | ????????????????????????????????????????? | +----------------------------------------------------+ Best States ------------- Heat Dissipation 67 Energy Generation 24 Energy Capacity 335 Matter Stores 300 Matter Capacity 300 Sight Range 18 Terrain Scan Range 16 Terrain Scan Density 110 Additional Mass Support 9 Armor Coverage 225 Propulsion Shielding 66 Weapon Cycling 30 Melee Speed Boost 20 Evasion (%) 55 Targeting Accuracy 5 Melee Accuracy 6 Core Analysis 6 Recoil Reduction 2 Force Boost 20 Item Schematics ----------------- None Robot Schematics ------------------ None Fabricated ------------ Nothing Alien Tech Used ----------------- None Achievements -------------- None Challenges ------------ None Game ------ Seed HugeChargeDrivehammer Manual? 0 Play Time 00:41:02 Cumulative 176.7 hours Start 2024.08.31 @ 21:46:11 End 2024.08.31 @ 22:27:26 Sessions 1 Manual Loads 0 Difficulty Rogue Special Mode None Game No. 142 Rogue 142 Adventurer 0 Explorer 0 Win Type - Total 1 Types 0/0/0/1/0/0/0/0/0 Lore% 62 Gallery% 71 Achievement% 52 Wizard Run 0 Options --------- Layout 2 ASCII 0 Keyboard 1 Movement Vi Keybinds 0 Fullscreen 1 Font 32/SmallcapsGlow Map View 77x44 Zoom Use 0% Tactical HUD 1 Map Filters NONE Filters NONE Steam 1 RUN: ecd992ed-da17-445c-ab9d-b8393773d753